[Event "Titled Tuesday Blitz October 31 Early 2023"]
[White "BrandonJiang123456"]
[Black "Desideri, Ricardo Maruchi"]
[BlackFideId "2110440"]
[WhiteElo "2250"]
[BlackElo "1922"]
[Result "0-1"]
[Round "5"]
[TimeControl "180+1"]
[Date "2023.10.31"]
[WhiteClock "0:00:00"]
[BlackClock "0:00:32"]
[Board "179"]

1. e4 {[%clk 0:03:00]}  c5 {[%clk 0:02:27]} 2. Nf3 {[%clk 0:02:58]}  d6 {[%clk 0:02:25]} 3. Bb5+ {[%clk 0:02:57]}  Nd7 {[%clk 0:02:23]} 4. d4 {[%clk 0:02:55]}  a6 {[%clk 0:02:22]} 5. Bxd7+ {[%clk 0:02:51]}  Bxd7 {[%clk 0:02:22]} 6. O-O {[%clk 0:02:51]}  cxd4 {[%clk 0:02:21]} 7. Qxd4 {[%clk 0:02:50]}  Nf6 {[%clk 0:02:14]} 8. Nc3 {[%clk 0:02:50]}  e6 {[%clk 0:02:11]} 9. Bg5 {[%clk 0:02:50]}  Be7 {[%clk 0:02:04]} 10. e5 {[%clk 0:02:51]}  dxe5 {[%clk 0:02:03]} 11. Nxe5 {[%clk 0:02:51]}  O-O {[%clk 0:01:52]} 12. Rfd1 {[%clk 0:02:47]}  Bc6 {[%clk 0:01:39]} 13. Nxc6 {[%clk 0:02:46]}  bxc6 {[%clk 0:01:38]} 14. Qc4 {[%clk 0:02:45]}  Qb6 {[%clk 0:01:29]} 15. Bxf6 {[%clk 0:00:15]}  Bxf6 {[%clk 0:01:28]} 16. Ne4 {[%clk 0:00:15]}  Bxb2 {[%clk 0:01:24]} 17. Rab1 {[%clk 0:00:14]}  Rfd8 {[%clk 0:01:16]} 18. Rxd8+ {[%clk 0:00:12]}  Rxd8 {[%clk 0:01:11]} 19. h3 {[%clk 0:00:08]}  Qd4 {[%clk 0:01:09]} 20. Qxd4 {[%clk 0:00:08]}  Bxd4 {[%clk 0:01:07]} 21. Rd1 {[%clk 0:00:08]}  Bb6 {[%clk 0:01:04]} 22. Rxd8+ {[%clk 0:00:07]}  Bxd8 {[%clk 0:01:04]} 23. Nc5 {[%clk 0:00:08]}  a5 {[%clk 0:00:54]} 24. a4 {[%clk 0:00:06]}  Kf8 {[%clk 0:00:42]} 25. Nb7 {[%clk 0:00:04]}  Bc7 {[%clk 0:00:39]} 26. Nc5 {[%clk 0:00:03]}  Ke7 {[%clk 0:00:34]} 27. Nd3 {[%clk 0:00:00]}  Kd6 {[%clk 0:00:32]} 0-1


[Site "https://www.chess.com"]

[Event "Titled Tuesday Blitz October 31 Early 2023"]
[White "Zivic, Dragan"]
[Black "Bocangel Chavez, Marjoire J."]
[WhiteFideId "904740"]
[BlackFideId "3810500"]
[WhiteElo "2231"]
[BlackElo "1873"]
[Result "1-0"]
[Round "5"]
[TimeControl "180+1"]
[Date "2023.10.31"]
[WhiteClock "0:01:15"]
[BlackClock "0:00:57"]
[Board "181"]

1. c4 {[%clk 0:02:45]}  e5 {[%clk 0:02:58]} 2. Nc3 {[%clk 0:02:40]}  f5 {[%clk 0:02:56]} 3. Nf3 {[%clk 0:02:40]}  Nc6 {[%clk 0:02:53]} 4. d4 {[%clk 0:02:38]}  exd4 {[%clk 0:02:46]} 5. Nxd4 {[%clk 0:02:38]}  Nf6 {[%clk 0:02:46]} 6. g3 {[%clk 0:02:37]}  Bc5 {[%clk 0:02:44]} 7. Nxc6 {[%clk 0:02:37]}  bxc6 {[%clk 0:02:43]} 8. Bg2 {[%clk 0:02:36]}  O-O {[%clk 0:02:42]} 9. O-O {[%clk 0:02:36]}  Bb7 {[%clk 0:02:35]} 10. b3 {[%clk 0:02:32]}  d5 {[%clk 0:02:34]} 11. Na4 {[%clk 0:02:26]}  Bb4 {[%clk 0:02:20]} 12. Bb2 {[%clk 0:02:22]}  Rb8 {[%clk 0:02:04]} 13. c5 {[%clk 0:02:14]}  Qe7 {[%clk 0:01:52]} 14. Qc2 {[%clk 0:01:55]}  Ne4 {[%clk 0:01:43]} 15. Rfc1 {[%clk 0:01:41]}  f4 {[%clk 0:01:19]} 16. a3 {[%clk 0:01:31]}  Bd2 {[%clk 0:01:18]} 17. Bxe4 {[%clk 0:01:25]}  Bxc1 {[%clk 0:01:17]} 18. Bxh7+ {[%clk 0:01:24]}  Kh8 {[%clk 0:01:16]} 19. Rxc1 {[%clk 0:01:23]}  fxg3 {[%clk 0:01:15]} 20. hxg3 {[%clk 0:01:21]}  Qf6 {[%clk 0:01:09]} 21. Bxf6 {[%clk 0:01:19]}  Rxf6 {[%clk 0:01:08]} 22. Bd3 {[%clk 0:01:17]}  Rbf8 {[%clk 0:01:04]} 23. f4 {[%clk 0:01:17]}  Rh6 {[%clk 0:00:57]} 24. Kg2 {[%clk 0:01:15]} 1-0


[Site "https://www.chess.com"]

[Event "Titled Tuesday Blitz October 31 Early 2023"]
[White "Vargas, Mauricio"]
[Black "Faci, Fadil"]
[WhiteFideId "4404572"]
[BlackFideId "4645162"]
[WhiteElo "1866"]
[BlackElo "2228"]
[Result "0-1"]
[Round "5"]
[TimeControl "180+1"]
[Date "2023.10.31"]
[WhiteClock "0:00:00"]
[BlackClock "0:02:34"]
[Board "182"]

1. e4 {[%clk 0:02:23]}  c5 {[%clk 0:02:58]} 2. Nf3 {[%clk 0:02:22]}  d6 {[%clk 0:02:58]} 3. d4 {[%clk 0:02:21]}  cxd4 {[%clk 0:02:59]} 4. Nxd4 {[%clk 0:02:21]}  Nf6 {[%clk 0:02:59]} 5. Nc3 {[%clk 0:02:20]}  g6 {[%clk 0:03:00]} 6. f3 {[%clk 0:02:20]}  Bg7 {[%clk 0:03:00]} 7. Be3 {[%clk 0:02:20]}  O-O {[%clk 0:03:00]} 8. Qd2 {[%clk 0:02:20]}  Nc6 {[%clk 0:03:01]} 9. Nde2 {[%clk 0:02:12]}  Be6 {[%clk 0:02:58]} 10. g3 {[%clk 0:02:08]}  Qa5 {[%clk 0:02:58]} 11. Bg2 {[%clk 0:02:04]}  Rfc8 {[%clk 0:02:58]} 12. O-O {[%clk 0:02:03]}  Ne5 {[%clk 0:02:56]} 13. Qc1 {[%clk 0:01:24]}  Nc4 {[%clk 0:02:54]} 14. Bf4 {[%clk 0:01:14]}  Qb6+ {[%clk 0:02:49]} 15. Kh1 {[%clk 0:01:06]}  Nh5 {[%clk 0:02:47]} 16. b3 {[%clk 0:00:31]}  Nxf4 {[%clk 0:02:42]} 17. gxf4 {[%clk 0:00:28]}  Ne3 {[%clk 0:02:36]} 18. Na4 {[%clk 0:00:05]}  Qd4 {[%clk 0:02:33]} 19. Nxd4 {[%clk 0:00:00]}  Nxf1 {[%clk 0:02:34]} 0-1


[Site "https://www.chess.com"]

[Event "Titled Tuesday Blitz October 31 Early 2023"]
[White "Quirke, Jeffrey"]
[Black "Mohammadian,Mohammad"]
[WhiteFideId "2013029"]
[BlackFideId "12566055"]
[WhiteElo "2213"]
[BlackElo "1853"]
[Result "1-0"]
[Round "5"]
[TimeControl "180+1"]
[Date "2023.10.31"]
[WhiteClock "0:01:19"]
[BlackClock "0:00:06"]
[Board "183"]

1. e4 {[%clk 0:02:55]}  e5 {[%clk 0:02:59]} 2. d4 {[%clk 0:02:54]}  exd4 {[%clk 0:02:59]} 3. Qxd4 {[%clk 0:02:55]}  Nc6 {[%clk 0:02:57]} 4. Qe3 {[%clk 0:02:55]}  Be7 {[%clk 0:02:56]} 5. Nc3 {[%clk 0:02:53]}  d6 {[%clk 0:02:56]} 6. Bd2 {[%clk 0:02:53]}  Nf6 {[%clk 0:02:56]} 7. O-O-O {[%clk 0:02:54]}  Be6 {[%clk 0:02:52]} 8. f4 {[%clk 0:02:54]}  O-O {[%clk 0:02:38]} 9. h3 {[%clk 0:02:49]}  Re8 {[%clk 0:02:34]} 10. g4 {[%clk 0:02:46]}  Bf8 {[%clk 0:02:34]} 11. Qg3 {[%clk 0:02:38]}  Bd7 {[%clk 0:02:22]} 12. Bg2 {[%clk 0:02:37]}  Nd4 {[%clk 0:02:21]} 13. g5 {[%clk 0:02:09]}  Nh5 {[%clk 0:02:13]} 14. Qf2 {[%clk 0:02:02]}  c5 {[%clk 0:02:10]} 15. Nf3 {[%clk 0:01:57]}  Nxf3 {[%clk 0:02:01]} 16. Bxf3 {[%clk 0:01:57]}  g6 {[%clk 0:01:48]} 17. Bxh5 {[%clk 0:01:56]}  gxh5 {[%clk 0:01:48]} 18. Nd5 {[%clk 0:01:57]}  Bg7 {[%clk 0:01:45]} 19. Bc3 {[%clk 0:01:57]}  Bxc3 {[%clk 0:01:43]} 20. bxc3 {[%clk 0:01:56]}  Qa5 {[%clk 0:01:41]} 21. Nf6+ {[%clk 0:01:52]}  Kh8 {[%clk 0:01:39]} 22. Qf3 {[%clk 0:01:49]}  Be6 {[%clk 0:01:21]} 23. Qxh5 {[%clk 0:01:34]}  Qa3+ {[%clk 0:00:50]} 24. Kd2 {[%clk 0:01:31]}  Bf5 {[%clk 0:00:50]} 25. exf5 {[%clk 0:01:25]}  Re2+ {[%clk 0:00:39]} 26. Kxe2 {[%clk 0:01:21]}  Re8+ {[%clk 0:00:33]} 27. Kd2 {[%clk 0:01:20]}  Re2+ {[%clk 0:00:06]} 28. Kxe2 {[%clk 0:01:19]} 1-0


[Site "https://www.chess.com"]

[Event "Titled Tuesday Blitz October 31 Early 2023"]
[White "Andreikin, Dmitry"]
[Black "Le, Quang Liem"]
[WhiteFideId "4158814"]
[BlackFideId "12401137"]
[WhiteElo "3106"]
[BlackElo "3019"]
[Result "1/2-1/2"]
[Round "6"]
[TimeControl "180+1"]
[Date "2023.10.31"]
[WhiteClock "0:00:06"]
[BlackClock "0:00:11"]
[Board "2"]

1. c4 {[%clk 0:03:00]}  e5 {[%clk 0:02:59]} 2. Nc3 {[%clk 0:03:00]}  Nf6 {[%clk 0:02:59]} 3. e3 {[%clk 0:03:00]}  Nc6 {[%clk 0:02:58]} 4. a3 {[%clk 0:03:00]}  d5 {[%clk 0:02:55]} 5. cxd5 {[%clk 0:03:01]}  Nxd5 {[%clk 0:02:55]} 6. Qc2 {[%clk 0:02:58]}  Nxc3 {[%clk 0:02:54]} 7. Qxc3 {[%clk 0:02:57]}  Bd6 {[%clk 0:02:55]} 8. Nf3 {[%clk 0:02:56]}  O-O {[%clk 0:02:48]} 9. b4 {[%clk 0:02:56]}  Re8 {[%clk 0:02:30]} 10. Bb2 {[%clk 0:02:54]}  Qf6 {[%clk 0:02:14]} 11. Be2 {[%clk 0:02:22]}  Bg4 {[%clk 0:01:56]} 12. b5 {[%clk 0:02:07]}  Nb8 {[%clk 0:01:45]} 13. h3 {[%clk 0:02:02]}  Bh5 {[%clk 0:01:38]} 14. d3 {[%clk 0:01:26]}  Nd7 {[%clk 0:01:35]} 15. g4 {[%clk 0:01:23]}  Bg6 {[%clk 0:01:34]} 16. h4 {[%clk 0:01:24]}  e4 {[%clk 0:01:12]} 17. dxe4 {[%clk 0:00:59]}  Bxe4 {[%clk 0:00:57]} 18. Qxf6 {[%clk 0:00:54]}  Nxf6 {[%clk 0:00:57]} 19. g5 {[%clk 0:00:45]}  Nd7 {[%clk 0:00:38]} 20. O-O {[%clk 0:00:40]}  Nc5 {[%clk 0:00:36]} 21. Nd2 {[%clk 0:00:34]}  Bd3 {[%clk 0:00:34]} 22. Bxd3 {[%clk 0:00:31]}  Nxd3 {[%clk 0:00:35]} 23. Bd4 {[%clk 0:00:31]}  a6 {[%clk 0:00:24]} 24. a4 {[%clk 0:00:29]}  Be5 {[%clk 0:00:24]} 25. Nf3 {[%clk 0:00:28]}  Bxd4 {[%clk 0:00:22]} 26. Nxd4 {[%clk 0:00:29]}  Re4 {[%clk 0:00:21]} 27. Rfd1 {[%clk 0:00:24]}  Nc5 {[%clk 0:00:21]} 28. Rac1 {[%clk 0:00:20]}  b6 {[%clk 0:00:20]} 29. bxa6 {[%clk 0:00:15]}  Rxh4 {[%clk 0:00:18]} 30. Nb5 {[%clk 0:00:11]}  Nxa6 {[%clk 0:00:18]} 31. Nxc7 {[%clk 0:00:07]}  Nxc7 {[%clk 0:00:19]} 32. Rxc7 {[%clk 0:00:08]}  Rhxa4 {[%clk 0:00:20]} 33. Rdd7 {[%clk 0:00:07]}  Rg4+ {[%clk 0:00:19]} 34. Kh2 {[%clk 0:00:06]}  Rxg5 {[%clk 0:00:17]} 35. Rxf7 {[%clk 0:00:06]}  Rf8 {[%clk 0:00:18]} 36. Rxf8+ {[%clk 0:00:04]}  Kxf8 {[%clk 0:00:19]} 37. Rb7 {[%clk 0:00:05]}  Rg6 {[%clk 0:00:19]} 38. f4 {[%clk 0:00:05]}  Re6 {[%clk 0:00:19]} 39. Kg2 {[%clk 0:00:03]}  Rxe3 {[%clk 0:00:19]} 40. Rxb6 {[%clk 0:00:04]}  Kf7 {[%clk 0:00:19]} 41. Ra6 {[%clk 0:00:03]}  Re6 {[%clk 0:00:19]} 42. Ra5 {[%clk 0:00:03]}  Kf6 {[%clk 0:00:19]} 43. Kf3 {[%clk 0:00:03]}  g6 {[%clk 0:00:19]} 44. Kg4 {[%clk 0:00:03]}  h5+ {[%clk 0:00:19]} 45. Kf3 {[%clk 0:00:03]}  Rb6 {[%clk 0:00:19]} 46. Rc5 {[%clk 0:00:03]}  Rb3+ {[%clk 0:00:19]} 47. Kf2 {[%clk 0:00:04]}  Ke6 {[%clk 0:00:18]} 48. Rg5 {[%clk 0:00:03]}  Kf6 {[%clk 0:00:18]} 49. Ra5 {[%clk 0:00:04]}  Rc3 {[%clk 0:00:18]} 50. Rb5 {[%clk 0:00:04]}  Rc4 {[%clk 0:00:18]} 51. Kf3 {[%clk 0:00:04]}  Rc1 {[%clk 0:00:19]} 52. Rb6+ {[%clk 0:00:04]}  Kg7 {[%clk 0:00:18]} 53. Rb7+ {[%clk 0:00:04]}  Kh6 {[%clk 0:00:18]} 54. Rb8 {[%clk 0:00:05]}  Rf1+ {[%clk 0:00:18]} 55. Kg3 {[%clk 0:00:05]}  Re1 {[%clk 0:00:18]} 56. Rb6 {[%clk 0:00:05]}  Kg7 {[%clk 0:00:17]} 57. Rb7+ {[%clk 0:00:05]}  Kf6 {[%clk 0:00:18]} 58. Rb6+ {[%clk 0:00:06]}  Re6 {[%clk 0:00:18]} 59. Rb5 {[%clk 0:00:07]}  Re3+ {[%clk 0:00:18]} 60. Kf2 {[%clk 0:00:07]}  Ra3 {[%clk 0:00:18]} 61. Rc5 {[%clk 0:00:07]}  h4 {[%clk 0:00:19]} 62. Rb5 {[%clk 0:00:07]}  h3 {[%clk 0:00:17]} 63. Kg1 {[%clk 0:00:06]}  Ra2 {[%clk 0:00:17]} 64. Kh1 {[%clk 0:00:06]}  Rf2 {[%clk 0:00:17]} 65. Rb3 {[%clk 0:00:06]}  h2 {[%clk 0:00:17]} 66. Rb4 {[%clk 0:00:04]}  Kf5 {[%clk 0:00:17]} 67. Rb5+ {[%clk 0:00:05]}  Kxf4 {[%clk 0:00:14]} 68. Rf5+ {[%clk 0:00:05]}  Ke3 {[%clk 0:00:14]} 69. Re5+ {[%clk 0:00:05]}  Kd4 {[%clk 0:00:13]} 70. Re4+ {[%clk 0:00:05]}  Kd5 {[%clk 0:00:12]} 71. Re5+ {[%clk 0:00:06]}  Kd4 {[%clk 0:00:12]} 72. Re4+ {[%clk 0:00:06]}  Kd3 {[%clk 0:00:13]} 73. Re3+ {[%clk 0:00:06]}  Kd4 {[%clk 0:00:11]} 74. Re4+ {[%clk 0:00:06]} 1/2-1/2


[Site "https://www.chess.com"]

[Event "Titled Tuesday Blitz October 31 Early 2023"]
[White "Shimanov, Aleksandr"]
[Black "So, Wesley"]
[WhiteFideId "4198603"]
[BlackFideId "5202213"]
[WhiteElo "2980"]
[BlackElo "3103"]
[Result "1/2-1/2"]
[Round "6"]
[TimeControl "180+1"]
[Date "2023.10.31"]
[WhiteClock "0:00:03"]
[BlackClock "0:00:05"]
[Board "3"]

1. e4 {[%clk 0:03:00]}  d6 {[%clk 0:02:55]} 2. d4 {[%clk 0:02:59]}  Nf6 {[%clk 0:02:56]} 3. f3 {[%clk 0:03:00]}  e5 {[%clk 0:02:45]} 4. d5 {[%clk 0:02:59]}  Be7 {[%clk 0:02:35]} 5. Be3 {[%clk 0:02:59]}  O-O {[%clk 0:02:26]} 6. c4 {[%clk 0:02:52]}  Nfd7 {[%clk 0:01:59]} 7. Qd2 {[%clk 0:02:46]}  a5 {[%clk 0:01:49]} 8. Nc3 {[%clk 0:02:41]}  Na6 {[%clk 0:01:46]} 9. Bd3 {[%clk 0:02:40]}  Nac5 {[%clk 0:01:33]} 10. Bc2 {[%clk 0:02:35]}  a4 {[%clk 0:01:31]} 11. Nge2 {[%clk 0:02:34]}  Nb6 {[%clk 0:01:30]} 12. Bd3 {[%clk 0:02:24]}  f5 {[%clk 0:01:15]} 13. Bxc5 {[%clk 0:02:24]}  dxc5 {[%clk 0:01:13]} 14. exf5 {[%clk 0:02:23]}  Bxf5 {[%clk 0:00:59]} 15. Bxf5 {[%clk 0:02:18]}  Rxf5 {[%clk 0:01:00]} 16. Qd3 {[%clk 0:02:18]}  Qd7 {[%clk 0:00:52]} 17. O-O {[%clk 0:02:18]}  Raf8 {[%clk 0:00:50]} 18. Rae1 {[%clk 0:02:14]}  Bh4 {[%clk 0:00:47]} 19. Ng3 {[%clk 0:02:06]}  Rf4 {[%clk 0:00:36]} 20. b3 {[%clk 0:02:04]}  Rd4 {[%clk 0:00:32]} 21. Qc2 {[%clk 0:02:00]}  axb3 {[%clk 0:00:30]} 22. axb3 {[%clk 0:02:01]}  c6 {[%clk 0:00:29]} 23. dxc6 {[%clk 0:01:48]}  bxc6 {[%clk 0:00:27]} 24. Nce4 {[%clk 0:01:49]}  Qe7 {[%clk 0:00:15]} 25. Re2 {[%clk 0:01:46]}  Bxg3 {[%clk 0:00:15]} 26. hxg3 {[%clk 0:01:46]}  Nd7 {[%clk 0:00:16]} 27. Rfe1 {[%clk 0:01:43]}  h6 {[%clk 0:00:16]} 28. Qa2 {[%clk 0:01:34]}  Nf6 {[%clk 0:00:15]} 29. Nf2 {[%clk 0:01:28]}  Nd7 {[%clk 0:00:15]} 30. Qa7 {[%clk 0:01:26]}  Rf7 {[%clk 0:00:12]} 31. Qc7 {[%clk 0:01:24]}  Qe6 {[%clk 0:00:11]} 32. Ng4 {[%clk 0:01:20]}  Qg6 {[%clk 0:00:08]} 33. Qd8+ {[%clk 0:00:38]}  Kh7 {[%clk 0:00:07]} 34. Qe8 {[%clk 0:00:38]}  Rf5 {[%clk 0:00:05]} 35. Qxg6+ {[%clk 0:00:21]}  Kxg6 {[%clk 0:00:06]} 36. Nxe5+ {[%clk 0:00:22]}  Nxe5 {[%clk 0:00:07]} 37. Rxe5 {[%clk 0:00:22]}  Rd3 {[%clk 0:00:08]} 38. g4 {[%clk 0:00:20]}  Rxe5 {[%clk 0:00:06]} 39. Rxe5 {[%clk 0:00:21]}  Rxb3 {[%clk 0:00:07]} 40. Rxc5 {[%clk 0:00:22]}  Rb6 {[%clk 0:00:08]} 41. Kf2 {[%clk 0:00:21]}  Kf6 {[%clk 0:00:08]} 42. Kg3 {[%clk 0:00:20]}  Ke6 {[%clk 0:00:08]} 43. Kf4 {[%clk 0:00:17]}  Kd6 {[%clk 0:00:05]} 44. Re5 {[%clk 0:00:17]}  Rb4 {[%clk 0:00:06]} 45. Re4 {[%clk 0:00:18]}  Rb2 {[%clk 0:00:06]} 46. g3 {[%clk 0:00:18]}  Rb3 {[%clk 0:00:05]} 47. g5 {[%clk 0:00:08]}  hxg5+ {[%clk 0:00:05]} 48. Kg4 {[%clk 0:00:09]}  Rc3 {[%clk 0:00:05]} 49. f4 {[%clk 0:00:08]}  gxf4 {[%clk 0:00:05]} 50. gxf4 {[%clk 0:00:09]}  Kc5 {[%clk 0:00:04]} 51. Re7 {[%clk 0:00:09]}  Rc1 {[%clk 0:00:04]} 52. Kf5 {[%clk 0:00:08]}  Rg1 {[%clk 0:00:05]} 53. Re4 {[%clk 0:00:08]}  Rg3 {[%clk 0:00:04]} 54. Ke6 {[%clk 0:00:07]}  Rg4 {[%clk 0:00:04]} 55. Kf5 {[%clk 0:00:07]}  Rg3 {[%clk 0:00:04]} 56. Ke6 {[%clk 0:00:05]}  Rg4 {[%clk 0:00:04]} 57. Kf5 {[%clk 0:00:05]}  Rg2 {[%clk 0:00:04]} 58. Ke6 {[%clk 0:00:05]}  Kb4 {[%clk 0:00:05]} 59. f5 {[%clk 0:00:05]}  c5 {[%clk 0:00:05]} 60. Kf7 {[%clk 0:00:05]}  Rg5 {[%clk 0:00:04]} 61. Ke6 {[%clk 0:00:05]}  Rg1 {[%clk 0:00:05]} 62. Rf4 {[%clk 0:00:05]}  Rg2 {[%clk 0:00:05]} 63. Kf7 {[%clk 0:00:05]}  Kc3 {[%clk 0:00:05]} 64. Ke6 {[%clk 0:00:03]}  Kd3 {[%clk 0:00:05]} 65. Kd5 {[%clk 0:00:03]}  Rg5 {[%clk 0:00:04]} 66. Kxc5 {[%clk 0:00:03]}  g6 {[%clk 0:00:05]} 67. Kd5 {[%clk 0:00:03]}  gxf5 {[%clk 0:00:04]} 68. c5 {[%clk 0:00:03]}  Ke3 {[%clk 0:00:04]} 69. Rf1 {[%clk 0:00:02]}  f4+ {[%clk 0:00:04]} 70. Kd6 {[%clk 0:00:03]}  Rg6+ {[%clk 0:00:03]} 71. Kd7 {[%clk 0:00:03]}  Rg7+ {[%clk 0:00:04]} 72. Kd6 {[%clk 0:00:03]}  Rg6+ {[%clk 0:00:04]} 73. Kd7 {[%clk 0:00:03]}  f3 {[%clk 0:00:04]} 74. c6 {[%clk 0:00:04]}  f2 {[%clk 0:00:05]} 75. Rxf2 {[%clk 0:00:03]}  Rxc6 {[%clk 0:00:04]} 76. Kxc6 {[%clk 0:00:03]}  Kxf2 {[%clk 0:00:05]} 1/2-1/2


[Site "https://www.chess.com"]

[Event "Titled Tuesday Blitz October 31 Early 2023"]
[White "Pakleza, Zbigniew"]
[Black "Terry, Renato"]
[WhiteFideId "1119290"]
[BlackFideId "3803457"]
[WhiteElo "2828"]
[BlackElo "3026"]
[Result "0-1"]
[Round "6"]
[TimeControl "180+1"]
[Date "2023.10.31"]
[WhiteClock "0:00:01"]
[BlackClock "0:00:04"]
[Board "4"]

1. d4 {[%clk 0:02:49]}  d5 {[%clk 0:03:00]} 2. Nf3 {[%clk 0:02:49]}  Nf6 {[%clk 0:02:58]} 3. Bf4 {[%clk 0:02:49]}  e6 {[%clk 0:02:57]} 4. e3 {[%clk 0:02:50]}  Bd6 {[%clk 0:02:57]} 5. Bg3 {[%clk 0:02:50]}  O-O {[%clk 0:02:48]} 6. Nbd2 {[%clk 0:02:50]}  c5 {[%clk 0:02:48]} 7. c3 {[%clk 0:02:49]}  Nc6 {[%clk 0:02:46]} 8. Bd3 {[%clk 0:02:49]}  cxd4 {[%clk 0:02:34]} 9. exd4 {[%clk 0:02:45]}  Qc7 {[%clk 0:02:24]} 10. O-O {[%clk 0:02:38]}  Bxg3 {[%clk 0:02:23]} 11. hxg3 {[%clk 0:02:39]}  e5 {[%clk 0:02:13]} 12. dxe5 {[%clk 0:02:38]}  Nxe5 {[%clk 0:02:14]} 13. Nxe5 {[%clk 0:02:38]}  Qxe5 {[%clk 0:02:15]} 14. Re1 {[%clk 0:02:34]}  Qc7 {[%clk 0:02:11]} 15. Qa4 {[%clk 0:02:28]}  Qb6 {[%clk 0:01:53]} 16. Nb3 {[%clk 0:02:24]}  Bd7 {[%clk 0:01:45]} 17. Qd4 {[%clk 0:02:23]}  Qxd4 {[%clk 0:01:45]} 18. Nxd4 {[%clk 0:02:22]}  Rfe8 {[%clk 0:01:45]} 19. f3 {[%clk 0:02:19]}  h5 {[%clk 0:01:42]} 20. Kf2 {[%clk 0:02:17]}  Kf8 {[%clk 0:01:42]} 21. Bc2 {[%clk 0:02:13]}  Re7 {[%clk 0:01:38]} 22. Bb3 {[%clk 0:02:10]}  Rae8 {[%clk 0:01:34]} 23. Rxe7 {[%clk 0:02:09]}  Kxe7 {[%clk 0:01:34]} 24. Rd1 {[%clk 0:02:10]}  Kd6 {[%clk 0:01:26]} 25. Nc2 {[%clk 0:02:07]}  Kc5 {[%clk 0:01:24]} 26. Ne3 {[%clk 0:02:04]}  Be6 {[%clk 0:01:23]} 27. Bc2 {[%clk 0:01:44]}  a5 {[%clk 0:01:12]} 28. a3 {[%clk 0:01:38]}  Rc8 {[%clk 0:01:07]} 29. Rd4 {[%clk 0:01:31]}  Rc7 {[%clk 0:01:03]} 30. Ke2 {[%clk 0:01:27]}  Rc6 {[%clk 0:00:59]} 31. Kd2 {[%clk 0:01:26]}  Rc7 {[%clk 0:00:59]} 32. Bb1 {[%clk 0:01:20]}  Rc8 {[%clk 0:00:59]} 33. Ba2 {[%clk 0:01:20]}  Ra8 {[%clk 0:00:53]} 34. Kd3 {[%clk 0:01:06]}  b6 {[%clk 0:00:53]} 35. Kd2 {[%clk 0:01:00]}  Ra7 {[%clk 0:00:53]} 36. Bb1 {[%clk 0:00:57]}  Ra8 {[%clk 0:00:52]} 37. Rf4 {[%clk 0:00:48]}  Rd8 {[%clk 0:00:51]} 38. Rd4 {[%clk 0:00:45]}  Rd7 {[%clk 0:00:51]} 39. Ba2 {[%clk 0:00:42]}  Ra7 {[%clk 0:00:50]} 40. Nc2 {[%clk 0:00:37]}  g5 {[%clk 0:00:43]} 41. Ne1 {[%clk 0:00:36]}  Rc7 {[%clk 0:00:25]} 42. Nd3+ {[%clk 0:00:35]}  Kd6 {[%clk 0:00:26]} 43. Ne1 {[%clk 0:00:24]}  Rc8 {[%clk 0:00:25]} 44. Nc2 {[%clk 0:00:24]}  Rh8 {[%clk 0:00:24]} 45. Ne3 {[%clk 0:00:23]}  Kc5 {[%clk 0:00:24]} 46. b4+ {[%clk 0:00:22]}  Kc6 {[%clk 0:00:22]} 47. bxa5 {[%clk 0:00:12]}  bxa5 {[%clk 0:00:22]} 48. Ra4 {[%clk 0:00:13]}  Kb5 {[%clk 0:00:20]} 49. Bb3 {[%clk 0:00:08]}  Rb8 {[%clk 0:00:04]} 50. Nc2 {[%clk 0:00:07]}  Kb6 {[%clk 0:00:03]} 51. Nd4 {[%clk 0:00:08]}  Bd7 {[%clk 0:00:03]} 52. Bc2 {[%clk 0:00:02]}  Bxa4 {[%clk 0:00:04]} 53. Bxa4 {[%clk 0:00:03]}  Rg8 {[%clk 0:00:03]} 54. Bc2 {[%clk 0:00:02]}  h4 {[%clk 0:00:03]} 55. g4 {[%clk 0:00:01]}  h3 {[%clk 0:00:04]} 56. gxh3 {[%clk 0:00:02]}  Rh8 {[%clk 0:00:04]} 57. Ke3 {[%clk 0:00:02]}  Rxh3 {[%clk 0:00:05]} 58. Bf5 {[%clk 0:00:02]}  Rh2 {[%clk 0:00:05]} 59. Ne2 {[%clk 0:00:01]}  Rh1 {[%clk 0:00:05]} 60. Ng3 {[%clk 0:00:01]}  Rg1 {[%clk 0:00:04]} 61. Kd4 {[%clk 0:00:01]}  Rxg3 {[%clk 0:00:04]} 0-1


[Site "https://www.chess.com"]